[Event "MČR v bleskovém šachu družstev 2019"]
[Site "Teplice, Czech Republic"]
[Date "2019.09.14"]
[Round "7.2"]
[White "Sorm, Daniel"]
[Black "Polak, Tomas"]
[Result "1/2-1/2"]
[TimeControl "3 mim. + 2 s"]
[WhiteTitle "FM"]
[BlackTitle "GM"]
[WhiteFideId "5400139"]
[BlackFideId "300560"]
[WhiteElo "2310"]
[BlackElo "2510"]

1. d4 {[%clk 00:03:03]} Nf6 {[%clk 00:03:03]} {[%emt 00:00:02]} 2. c4 {[%clk
00:03:04]} {[%emt 00:00:01]} e6 {[%clk 00:03:04]} 3. Nc3 {[%clk 00:03:05]}
{[%emt 00:00:01]} Bb4 4. e3 {[%emt 00:00:01]} c5 {[%clk 00:03:05]} {[%emt
00:00:02]} 5. Bd3 {[%clk 00:03:07]} {[%emt 00:00:01]} Nc6 {[%clk 00:03:04]}
{[%emt 00:00:03]} 6. Nge2 {[%clk 00:03:08]} {[%emt 00:00:01]} cxd4 {[%clk
00:03:04]} {[%emt 00:00:02]} 7. exd4 {[%clk 00:03:09]} {[%emt 00:00:01]} d5
{[%clk 00:03:06]} 8. cxd5 {[%clk 00:03:10]} {[%emt 00:00:02]} Nxd5 {[%clk
00:03:05]} {[%emt 00:00:02]} 9. O-O {[%clk 00:03:10]} {[%emt 00:00:02]} O-O
{[%clk 00:03:06]} {[%emt 00:00:02]} 10. Bc2 {[%clk 00:03:07]} {[%emt 00:00:05]}
Re8 {[%clk 00:02:56]} {[%emt 00:00:12]} 11. Qd3 {[%clk 00:03:07]} {[%emt
00:00:02]} g6 {[%clk 00:02:57]} {[%emt 00:00:01]} 12. Bb3 {[%clk 00:03:02]}
{[%emt 00:00:07]} Bf8 {[%clk 00:02:54]} {[%emt 00:00:06]} 13. Nxd5 {[%clk
00:02:42]} {[%emt 00:00:22]} exd5 {[%clk 00:02:54]} {[%emt 00:00:01]} 14. Be3
{[%clk 00:02:42]} {[%emt 00:00:02]} Na5 {[%clk 00:02:35]} {[%emt 00:00:21]} 15.
Nf4 {[%clk 00:02:31]} {[%emt 00:00:13]} Be6 {[%clk 00:02:15]} {[%emt 00:00:22]}
16. Ba4 {[%clk 00:02:14]} {[%emt 00:00:19]} Bd7 {[%clk 00:02:10]} {[%emt
00:00:08]} 17. Bb3 {[%clk 00:02:15]} {[%emt 00:00:02]} Bc6 {[%clk 00:01:59]}
{[%emt 00:00:13]} 18. Rac1 {[%clk 00:01:52]} {[%emt 00:00:25]} Qd7 {[%clk
00:01:59]} {[%emt 00:00:02]} 19. Rfd1 {[%clk 00:01:39]} {[%emt 00:00:15]} Rac8
{[%clk 00:01:53]} {[%emt 00:00:08]} 20. h4 {[%clk 00:01:28]} {[%emt 00:00:13]}
Nxb3 {[%clk 00:01:46]} {[%emt 00:00:10]} 21. axb3 {[%clk 00:00:50]} {[%emt
00:00:40]} h5 {[%clk 00:01:26]} {[%emt 00:00:22]} 22. Re1 {[%clk 00:00:42]}
{[%emt 00:00:10]} Re4 {[%clk 00:01:23]} {[%emt 00:00:05]} 23. f3 {[%clk
00:00:37]} {[%emt 00:00:07]} Ree8 {[%clk 00:01:23]} {[%emt 00:00:01]} 24. Qd2
{[%clk 00:00:30]} {[%emt 00:00:09]} Be7 {[%clk 00:01:17]} {[%emt 00:00:08]} 25.
Bf2 {[%clk 00:00:26]} {[%emt 00:00:06]} Bd6 {[%clk 00:01:10]} {[%emt 00:00:10]}
26. Nd3 {[%clk 00:00:25]} {[%emt 00:00:03]} Qf5 {[%clk 00:01:07]} {[%emt
00:00:05]} 27. Ne5 {[%clk 00:00:23]} {[%emt 00:00:04]} Bb5 {[%clk 00:00:53]}
{[%emt 00:00:16]} 28. Bg3 {[%clk 00:00:23]} {[%emt 00:00:02]} f6 {[%clk
00:00:48]} {[%emt 00:00:06]} 29. Rxc8 {[%clk 00:00:16]} {[%emt 00:00:10]} Qxc8
{[%clk 00:00:35]} {[%emt 00:00:15]} 30. Qh6 {[%clk 00:00:14]} {[%emt 00:00:04]}
fxe5 {[%clk 00:00:12]} {[%emt 00:00:25]} 31. Qxg6+ {[%clk 00:00:13]} {[%emt
00:00:03]} Kh8 {[%clk 00:00:12]} {[%emt 00:00:02]} 32. Qh6+ {[%clk 00:00:10]}
{[%emt 00:00:05]} Kg8 {[%clk 00:00:13]} 33. Qg6+ {[%clk 00:00:07]} {[%emt
00:00:06]} Kh8 {[%clk 00:00:15]} 34. Qxd6 {[%clk 00:00:06]} {[%emt 00:00:03]}
exd4 {[%clk 00:00:13]} {[%emt 00:00:03]} 35. Be5+ {[%clk 00:00:06]} {[%emt
00:00:02]} Kh7 {[%clk 00:00:14]} {[%emt 00:00:02]} 36. Qf6 {[%clk 00:00:06]}
{[%emt 00:00:01]} Qd7 {[%clk 00:00:13]} {[%emt 00:00:03]} 37. Qg5 {[%clk
00:00:06]} {[%emt 00:00:03]} Qf7 {[%clk 00:00:13]} {[%emt 00:00:02]} 38. Rc1
{[%clk 00:00:06]} {[%emt 00:00:02]} Bc6 {[%clk 00:00:14]} {[%emt 00:00:01]} 39.
Bxd4 {[%clk 00:00:06]} {[%emt 00:00:02]} Rg8 {[%clk 00:00:14]} {[%emt
00:00:02]} 40. Qe3 {[%clk 00:00:06]} {[%emt 00:00:02]} Re8 {[%clk 00:00:14]}
{[%emt 00:00:02]} 41. Qg5 {[%clk 00:00:06]} {[%emt 00:00:02]} Rg8 42. Qe3 Re8
{[%clk 00:00:17]} 43. Qg5 {[%clk 00:00:09]} Rg8 {[%clk 00:00:18]} {[%emt
00:00:02]} 44. Qe3 {[%clk 00:00:10]} 1/2-1/2

[Event "MČR v bleskovém šachu družstev 2019"]
[Site "Teplice, Czech Republic"]
[Date "2019.09.14"]
[Round "7.3"]
[White "Stocek, Jiri"]
[Black "Strasil, Pavel"]
[Result "1-0"]
[TimeControl "3 mim. + 2 s"]
[WhiteTitle "GM"]
[WhiteFideId "304760"]
[BlackFideId "308013"]
[WhiteElo "2505"]
[BlackElo "2026"]

1. e4 {[%clk 00:03:02]} e6 {[%clk 00:03:03]} {[%emt 00:00:02]} 2. d4 {[%clk
00:03:03]} {[%emt 00:00:02]} d5 {[%clk 00:03:05]} 3. Nc3 {[%clk 00:03:03]}
{[%emt 00:00:02]} Bb4 {[%clk 00:03:05]} {[%emt 00:00:02]} 4. a3 {[%clk
00:03:02]} {[%emt 00:00:03]} Bxc3+ {[%clk 00:03:01]} {[%emt 00:00:05]} 5. bxc3
{[%clk 00:03:03]} dxe4 {[%clk 00:03:01]} {[%emt 00:00:03]} 6. Qg4 {[%clk
00:03:04]} {[%emt 00:00:02]} Kf8 {[%clk 00:02:29]} {[%emt 00:00:34]} 7. Qxe4
{[%clk 00:03:03]} {[%emt 00:00:02]} Nd7 {[%clk 00:02:14]} {[%emt 00:00:17]} 8.
Bd3 {[%clk 00:03:00]} {[%emt 00:00:05]} Ndf6 {[%clk 00:02:12]} {[%emt
00:00:04]} 9. Qe2 {[%clk 00:02:55]} {[%emt 00:00:06]} Ne7 {[%clk 00:02:09]}
{[%emt 00:00:05]} 10. Nf3 {[%clk 00:02:54]} {[%emt 00:00:03]} b6 {[%clk
00:02:07]} {[%emt 00:00:05]} 11. O-O {[%clk 00:02:43]} {[%emt 00:00:12]} Bb7
{[%clk 00:02:08]} {[%emt 00:00:02]} 12. c4 {[%clk 00:02:39]} {[%emt 00:00:06]}
Ng6 {[%clk 00:01:34]} {[%emt 00:00:36]} 13. h3 {[%clk 00:01:42]} {[%emt
00:00:58]} Qd6 {[%clk 00:01:24]} {[%emt 00:00:12]} 14. Qe3 {[%clk 00:01:39]}
{[%emt 00:00:05]} c5 {[%clk 00:01:04]} {[%emt 00:00:22]} 15. c3 {[%clk
00:01:33]} {[%emt 00:00:08]} Rd8 {[%clk 00:01:01]} {[%emt 00:00:06]} 16. Rd1
{[%clk 00:01:27]} {[%emt 00:00:07]} Qc7 {[%clk 00:00:41]} {[%emt 00:00:23]} 17.
a4 {[%clk 00:01:20]} {[%emt 00:00:09]} Kg8 {[%clk 00:00:40]} {[%emt 00:00:03]}
18. a5 {[%clk 00:01:18]} {[%emt 00:00:04]} Ne7 {[%clk 00:00:29]} {[%emt
00:00:12]} 19. Ne5 {[%clk 00:01:10]} {[%emt 00:00:10]} Ng6 {[%clk 00:00:22]}
{[%emt 00:00:10]} 20. axb6 {[%clk 00:01:05]} {[%emt 00:00:07]} axb6 {[%clk
00:00:21]} {[%emt 00:00:03]} 21. Nf3 {[%clk 00:00:34]} {[%emt 00:00:33]} Bc6
{[%clk 00:00:20]} {[%emt 00:00:03]} 22. Bf1 {[%clk 00:00:20]} {[%emt 00:00:15]}
Qb7 {[%clk 00:00:16]} {[%emt 00:00:07]} 23. Ne5 {[%clk 00:00:18]} {[%emt
00:00:04]} Nxe5 {[%clk 00:00:15]} {[%emt 00:00:03]} 24. Qxe5 {[%clk 00:00:19]}
{[%emt 00:00:02]} Ne4 {[%clk 00:00:13]} {[%emt 00:00:04]} 25. Rd3 {[%clk
00:00:16]} {[%emt 00:00:05]} cxd4 {[%clk 00:00:08]} {[%emt 00:00:07]} 26. cxd4
{[%clk 00:00:17]} {[%emt 00:00:01]} Qb8 {[%clk 00:00:07]} {[%emt 00:00:03]} 27.
Qxb8 {[%clk 00:00:14]} Rxb8 {[%clk 00:00:08]} 28. d5 {[%clk 00:00:15]} {[%emt
00:00:02]} exd5 {[%clk 00:00:09]} {[%emt 00:00:01]} 29. cxd5 {[%clk 00:00:16]}
{[%emt 00:00:01]} Bd7 {[%clk 00:00:10]} {[%emt 00:00:02]} 30. d6 {[%clk
00:00:16]} {[%emt 00:00:02]} f6 {[%clk 00:00:09]} {[%emt 00:00:03]} 31. Rd4
{[%clk 00:00:14]} {[%emt 00:00:03]} Nc5 {[%clk 00:00:08]} {[%emt 00:00:03]} 32.
Ra7 {[%clk 00:00:13]} {[%emt 00:00:03]} Kf7 {[%clk 00:00:05]} {[%emt 00:00:05]}
33. Bc4+ {[%clk 00:00:13]} {[%emt 00:00:01]} Kg6 {[%clk 00:00:07]} 34. Be3
{[%clk 00:00:11]} {[%emt 00:00:05]} Rhe8 {[%clk 00:00:07]} {[%emt 00:00:02]} 35.
Rd5 {[%clk 00:00:10]} {[%emt 00:00:04]} Ra8 {[%clk 00:00:05]} {[%emt 00:00:04]}
36. Rc7 {[%clk 00:00:06]} {[%emt 00:00:06]} Ra1+ {[%clk 00:00:03]} {[%emt
00:00:03]} 37. Kh2 {[%clk 00:00:07]} Be6 {[%clk 00:00:00]} {[%emt 00:00:05]} 38.
Rdxc5 {[%clk 00:00:07]} {[%emt 00:00:07]} bxc5 {[%clk 00:00:00]} {[%emt
00:00:01]} 39. d7 {[%clk 00:00:07]} {[%emt 00:00:02]} Bxd7 {[%clk 00:00:00]}
{[%emt 00:00:02]} 40. Rxd7 {[%clk 00:00:07]} {[%emt 00:00:01]} 1-0

[Event "MČR v bleskovém šachu družstev 2019"]
[Site "Teplice, Czech Republic"]
[Date "2019.09.14"]
[Round "7.4"]
[White "Krejci, Jan"]
[Black "Vymazal, Bronislav"]
[Result "0-1"]
[TimeControl "3 mim. + 2 s"]
[WhiteFideId "316873"]
[BlackFideId "318396"]
[WhiteElo "2048"]
[BlackElo "2309"]

1. Nf3 {[%clk 00:03:03]} f5 {[%clk 00:03:03]} {[%emt 00:00:02]} 2. d4 {[%clk
00:03:03]} {[%emt 00:00:02]} Nf6 {[%clk 00:03:03]} {[%emt 00:00:01]} 3. c4
{[%clk 00:03:03]} {[%emt 00:00:02]} d6 {[%clk 00:03:03]} {[%emt 00:00:02]} 4.
d5 {[%clk 00:03:04]} {[%emt 00:00:02]} g6 {[%clk 00:03:00]} {[%emt 00:00:05]} 5.
Nc3 {[%clk 00:03:04]} {[%emt 00:00:02]} Bg7 {[%clk 00:03:00]} {[%emt 00:00:02]}
6. g3 {[%clk 00:03:02]} {[%emt 00:00:04]} O-O {[%clk 00:02:58]} {[%emt
00:00:05]} 7. Bg2 {[%clk 00:03:03]} c5 {[%clk 00:02:24]} {[%emt 00:00:35]} 8.
O-O {[%clk 00:03:02]} {[%emt 00:00:04]} Na6 {[%clk 00:02:23]} {[%emt 00:00:03]}
9. Qc2 {[%clk 00:02:58]} {[%emt 00:00:06]} Nc7 {[%clk 00:02:19]} {[%emt
00:00:07]} 10. b3 {[%clk 00:02:49]} {[%emt 00:00:11]} Bd7 {[%clk 00:02:12]}
{[%emt 00:00:08]} 11. Bb2 {[%clk 00:02:49]} {[%emt 00:00:02]} b5 {[%clk
00:02:12]} {[%emt 00:00:02]} 12. Rfe1 {[%clk 00:02:35]} {[%emt 00:00:15]} Rb8
{[%clk 00:02:10]} {[%emt 00:00:04]} 13. Rab1 {[%clk 00:02:26]} {[%emt
00:00:11]} bxc4 {[%clk 00:01:58]} {[%emt 00:00:15]} 14. bxc4 {[%clk 00:02:26]}
{[%emt 00:00:02]} Rb4 {[%clk 00:01:46]} {[%emt 00:00:14]} 15. Nd2 {[%clk
00:02:14]} {[%emt 00:00:14]} Qb8 {[%clk 00:01:36]} {[%emt 00:00:12]} 16. Ba3
{[%clk 00:02:10]} {[%emt 00:00:07]} a5 {[%clk 00:00:54]} {[%emt 00:00:44]} 17.
Bxb4 {[%clk 00:02:08]} {[%emt 00:00:04]} axb4 {[%clk 00:00:55]} {[%emt
00:00:01]} 18. Nd1 {[%clk 00:02:01]} {[%emt 00:00:10]} Qa7 {[%clk 00:00:54]}
{[%emt 00:00:02]} 19. Nb3 {[%clk 00:01:54]} {[%emt 00:00:09]} Ra8 {[%clk
00:00:54]} {[%emt 00:00:02]} 20. Nc1 {[%clk 00:01:55]} {[%emt 00:00:02]} Ng4
{[%clk 00:00:34]} {[%emt 00:00:23]} 21. Nb2 {[%clk 00:01:46]} {[%emt 00:00:10]}
Qa3 {[%clk 00:00:29]} {[%emt 00:00:07]} 22. Nbd3 {[%clk 00:01:41]} {[%emt
00:00:08]} Ba4 {[%clk 00:00:28]} {[%emt 00:00:03]} 23. Qd2 {[%clk 00:01:19]}
{[%emt 00:00:24]} Bc3 {[%clk 00:00:27]} {[%emt 00:00:03]} 24. Qg5 {[%clk
00:01:18]} {[%emt 00:00:02]} Bxe1 {[%clk 00:00:23]} {[%emt 00:00:07]} 25. Nxe1
{[%clk 00:01:03]} {[%emt 00:00:17]} Qc3 {[%clk 00:00:23]} {[%emt 00:00:02]} 26.
Ncd3 {[%clk 00:00:54]} {[%emt 00:00:12]} Nf6 {[%clk 00:00:12]} {[%emt
00:00:13]} 27. Rc1 {[%clk 00:00:49]} {[%emt 00:00:06]} Qa3 {[%clk 00:00:11]}
{[%emt 00:00:04]} 28. Qe3 {[%clk 00:00:44]} {[%emt 00:00:06]} Kf7 {[%clk
00:00:10]} {[%emt 00:00:03]} 29. Nf3 {[%clk 00:00:39]} {[%emt 00:00:08]} Ne4
{[%clk 00:00:05]} {[%emt 00:00:07]} 30. Ng5+ {[%clk 00:00:36]} {[%emt
00:00:05]} Nxg5 {[%clk 00:00:06]} {[%emt 00:00:01]} 31. Qxg5 {[%clk 00:00:37]}
{[%emt 00:00:01]} Qxa2 {[%clk 00:00:06]} {[%emt 00:00:02]} 32. h4 {[%clk
00:00:25]} {[%emt 00:00:14]} Qxe2 {[%clk 00:00:07]} {[%emt 00:00:01]} 33. Nf4
{[%clk 00:00:25]} {[%emt 00:00:02]} Qd2 {[%clk 00:00:09]} 34. Rf1 {[%clk
00:00:23]} {[%emt 00:00:03]} Bb3 {[%clk 00:00:10]} {[%emt 00:00:01]} 35. h5
{[%clk 00:00:23]} {[%emt 00:00:02]} Rg8 {[%clk 00:00:11]} {[%emt 00:00:01]} 36.
hxg6+ {[%clk 00:00:22]} {[%emt 00:00:03]} hxg6 {[%clk 00:00:12]} 37. Qh4 {[%clk
00:00:19]} {[%emt 00:00:06]} Bxc4 {[%clk 00:00:12]} {[%emt 00:00:02]} 38. Ra1
{[%clk 00:00:17]} {[%emt 00:00:02]} b3 {[%emt 00:00:05]} 39. Qh7+ {[%clk
00:00:16]} Rg7 {[%clk 00:00:14]} 40. Qh4 {[%clk 00:00:14]} {[%emt 00:00:04]} b2
{[%clk 00:00:16]} {[%emt 00:00:01]} 41. Rb1 {[%clk 00:00:13]} {[%emt 00:00:02]}
Ba2 {[%clk 00:00:17]} 42. Ne6 {[%clk 00:00:10]} {[%emt 00:00:06]} Nxe6 {[%clk
00:00:18]} {[%emt 00:00:01]} 43. dxe6+ {[%clk 00:00:11]} {[%emt 00:00:01]} Kxe6
{[%clk 00:00:19]} {[%emt 00:00:01]} 44. Rf1 {[%clk 00:00:11]} {[%emt 00:00:01]}
b1=Q {[%clk 00:00:18]} {[%emt 00:00:03]} 45. Rxb1 {[%clk 00:00:12]} {[%emt
00:00:01]} Bxb1 {[%clk 00:00:18]} {[%emt 00:00:02]} 46. Qh8 {[%clk 00:00:13]}
{[%emt 00:00:02]} Kf7 {[%clk 00:00:19]} {[%emt 00:00:01]} 47. Qc8 {[%clk
00:00:13]} {[%emt 00:00:02]} Ba2 {[%clk 00:00:20]} {[%emt 00:00:01]} 48. Qc6
{[%clk 00:00:12]} {[%emt 00:00:03]} Be6 {[%clk 00:00:20]} {[%emt 00:00:02]} 49.
Qf3 {[%clk 00:00:11]} {[%emt 00:00:02]} Rg8 {[%clk 00:00:21]} {[%emt 00:00:01]}
50. g4 {[%clk 00:00:12]} {[%emt 00:00:01]} c4 {[%clk 00:00:22]} {[%emt
00:00:02]} 51. gxf5 {[%clk 00:00:12]} {[%emt 00:00:01]} gxf5 {[%emt 00:00:02]}
52. Qh5+ {[%clk 00:00:13]} Rg6 {[%clk 00:00:25]} 53. Qh7+ {[%clk 00:00:14]}
{[%emt 00:00:01]} Rg7 {[%clk 00:00:26]} 54. Qh5+ {[%clk 00:00:15]} Kf6 {[%clk
00:00:27]} 55. Qh4+ {[%clk 00:00:15]} {[%emt 00:00:02]} Qg5 {[%clk 00:00:29]}
{[%emt 00:00:02]} 56. Qh3 {[%clk 00:00:16]} f4 {[%clk 00:00:29]} {[%emt
00:00:01]} 0-1

[Event "MČR v bleskovém šachu družstev 2019"]
[Site "Teplice, Czech Republic"]
[Date "2019.09.14"]
[Round "7.5"]
[White "Liska, Jiri"]
[Black "Vykouk, Jan"]
[Result "0-1"]
[TimeControl "3 mim. + 2 s"]
[WhiteTitle "FM"]
[BlackTitle "IM"]
[WhiteElo "2241"]
[BlackElo "2439"]

1. e4 {[%clk 00:03:01]} {[%emt 00:00:02]} c5 {[%clk 00:03:03]} {[%emt
00:00:01]} 2. Nf3 {[%clk 00:03:01]} {[%emt 00:00:01]} d6 {[%clk 00:03:04]}
{[%emt 00:00:02]} 3. c3 {[%clk 00:03:02]} {[%emt 00:00:02]} Nf6 {[%clk
00:03:05]} {[%emt 00:00:01]} 4. Be2 {[%clk 00:03:02]} {[%emt 00:00:02]} Nbd7
{[%clk 00:03:04]} {[%emt 00:00:03]} 5. d3 {[%clk 00:02:58]} {[%emt 00:00:05]}
e6 {[%clk 00:03:05]} {[%emt 00:00:02]} 6. O-O {[%clk 00:02:58]} {[%emt
00:00:02]} Qc7 {[%clk 00:03:05]} {[%emt 00:00:02]} 7. Re1 {[%clk 00:02:57]}
{[%emt 00:00:03]} b6 {[%clk 00:03:05]} {[%emt 00:00:02]} 8. Nbd2 {[%clk
00:02:50]} {[%emt 00:00:08]} Bb7 {[%clk 00:03:06]} {[%emt 00:00:01]} 9. Bf1
{[%clk 00:02:47]} {[%emt 00:00:04]} Be7 {[%clk 00:03:05]} {[%emt 00:00:03]} 10.
d4 {[%clk 00:02:48]} {[%emt 00:00:02]} cxd4 {[%clk 00:03:05]} {[%emt 00:00:02]}
11. cxd4 {[%clk 00:02:48]} {[%emt 00:00:01]} Rc8 {[%clk 00:03:05]} {[%emt
00:00:02]} 12. b3 {[%clk 00:02:30]} {[%emt 00:00:21]} d5 {[%clk 00:02:59]}
{[%emt 00:00:09]} 13. e5 {[%clk 00:02:23]} {[%emt 00:00:08]} Ne4 {[%clk
00:02:59]} {[%emt 00:00:01]} 14. Nxe4 {[%clk 00:02:16]} {[%emt 00:00:09]} dxe4
{[%clk 00:02:59]} {[%emt 00:00:02]} 15. Ng5 {[%clk 00:02:13]} {[%emt 00:00:05]}
Bxg5 {[%clk 00:02:18]} {[%emt 00:00:44]} 16. Bxg5 {[%clk 00:02:13]} {[%emt
00:00:01]} O-O {[%clk 00:02:08]} {[%emt 00:00:13]} 17. Be7 {[%clk 00:02:03]}
{[%emt 00:00:11]} Rfe8 {[%clk 00:02:06]} {[%emt 00:00:04]} 18. Bd6 {[%clk
00:02:04]} {[%emt 00:00:01]} Qc2 {[%clk 00:01:56]} {[%emt 00:00:12]} 19. Bb5
{[%clk 00:01:54]} {[%emt 00:00:12]} Qxd1 {[%clk 00:01:24]} {[%emt 00:00:33]} 20.
Raxd1 {[%clk 00:01:45]} {[%emt 00:00:10]} Bc6 {[%clk 00:01:18]} {[%emt
00:00:08]} 21. Ba6 {[%clk 00:01:43]} {[%emt 00:00:05]} Ra8 {[%clk 00:01:17]}
{[%emt 00:00:03]} 22. Rc1 {[%clk 00:01:42]} {[%emt 00:00:03]} Bd5 {[%clk
00:00:56]} {[%emt 00:00:23]} 23. Rc7 {[%clk 00:01:40]} {[%emt 00:00:04]} Nf8
{[%clk 00:00:52]} {[%emt 00:00:05]} 24. Rec1 {[%clk 00:01:39]} {[%emt
00:00:03]} Ng6 {[%clk 00:00:47]} {[%emt 00:00:08]} 25. g3 {[%clk 00:01:33]}
{[%emt 00:00:08]} h6 {[%clk 00:00:27]} {[%emt 00:00:21]} 26. h4 {[%clk
00:01:30]} {[%emt 00:00:04]} Red8 {[%clk 00:00:24]} {[%emt 00:00:06]} 27. Rc8
{[%clk 00:00:51]} {[%emt 00:00:40]} Raxc8 {[%clk 00:00:22]} {[%emt 00:00:04]}
28. Rxc8 {[%clk 00:00:52]} {[%emt 00:00:01]} Rxc8 {[%clk 00:00:23]} {[%emt
00:00:01]} 29. Bxc8 {[%clk 00:00:52]} {[%emt 00:00:01]} Bc6 {[%clk 00:00:09]}
{[%emt 00:00:16]} 30. Ba6 {[%clk 00:00:42]} {[%emt 00:00:13]} f6 {[%clk
00:00:08]} {[%emt 00:00:03]} 31. exf6 {[%clk 00:00:36]} {[%emt 00:00:08]} gxf6
{[%clk 00:00:09]} {[%emt 00:00:01]} 32. Bb8 {[%clk 00:00:36]} {[%emt 00:00:01]}
b5 {[%clk 00:00:09]} {[%emt 00:00:02]} 33. Bxa7 {[%clk 00:00:31]} {[%emt
00:00:07]} Ne7 {[%clk 00:00:10]} {[%emt 00:00:02]} 34. Bc5 {[%clk 00:00:19]}
{[%emt 00:00:13]} Nd5 {[%clk 00:00:11]} {[%emt 00:00:01]} 35. a3 {[%clk
00:00:14]} {[%emt 00:00:08]} Kf7 {[%clk 00:00:12]} 36. a4 {[%clk 00:00:09]}
{[%emt 00:00:07]} bxa4 {[%clk 00:00:12]} {[%emt 00:00:02]} 37. b4 {[%clk
00:00:09]} {[%emt 00:00:02]} Nc7 {[%clk 00:00:12]} {[%emt 00:00:02]} 38. Bc4
{[%clk 00:00:08]} {[%emt 00:00:02]} Bb5 {[%clk 00:00:06]} {[%emt 00:00:08]} 39.
Ba2 {[%clk 00:00:08]} {[%emt 00:00:02]} Nd5 {[%clk 00:00:06]} {[%emt 00:00:03]}
40. g4 {[%clk 00:00:04]} {[%emt 00:00:05]} Nc3 {[%clk 00:00:07]} {[%emt
00:00:02]} 0-1

[Event "MČR v bleskovém šachu družstev 2019"]
[Site "Teplice, Czech Republic"]
[Date "2019.09.14"]
[Round "7.6"]
[White "Studnicka, Tomas"]
[Black "Vltavsky, Vladimir"]
[Result "1-0"]
[TimeControl "3 mim. + 2 s"]
[WhiteTitle "IM"]
[WhiteElo "2215"]
[BlackElo "2252"]

1. d4 {[%clk 00:03:03]} {[%emt 00:20:18]} Nf6 {[%clk 00:03:03]} {[%emt
00:00:02]} 2. c4 {[%clk 00:03:04]} {[%emt 00:00:01]} e6 {[%clk 00:03:04]} 3.
Nf3 {[%clk 00:03:05]} {[%emt 00:00:01]} Bb4+ {[%clk 00:03:04]} {[%emt
00:00:01]} 4. Bd2 {[%clk 00:03:05]} {[%emt 00:00:02]} Bxd2+ {[%clk 00:03:03]}
{[%emt 00:00:03]} 5. Nbxd2 {[%clk 00:03:05]} {[%emt 00:00:01]} d5 {[%clk
00:02:49]} {[%emt 00:00:16]} 6. g3 {[%clk 00:03:04]} {[%emt 00:00:04]} O-O
{[%clk 00:02:48]} {[%emt 00:00:03]} 7. Bg2 {[%clk 00:03:05]} {[%emt 00:00:01]}
b6 {[%clk 00:02:45]} {[%emt 00:00:04]} 8. cxd5 {[%clk 00:03:03]} {[%emt
00:00:04]} exd5 {[%clk 00:02:46]} 9. O-O {[%clk 00:03:04]} {[%emt 00:00:03]}
Nbd7 {[%clk 00:02:45]} {[%emt 00:00:03]} 10. Ne5 {[%clk 00:03:00]} {[%emt
00:00:06]} Bb7 {[%clk 00:02:38]} {[%emt 00:00:09]} 11. Ndf3 {[%clk 00:02:58]}
{[%emt 00:00:04]} c5 {[%clk 00:02:37]} {[%emt 00:00:03]} 12. b3 {[%clk
00:02:40]} {[%emt 00:00:20]} Qe7 {[%clk 00:02:35]} {[%emt 00:00:04]} 13. e3
{[%clk 00:02:34]} {[%emt 00:00:08]} Rfd8 {[%clk 00:02:23]} {[%emt 00:00:14]} 14.
Qd2 {[%clk 00:02:26]} {[%emt 00:00:10]} Ne4 {[%clk 00:02:22]} {[%emt 00:00:03]}
15. Qb2 {[%clk 00:02:27]} Ndf6 {[%clk 00:02:15]} {[%emt 00:00:09]} 16. Rac1
{[%clk 00:02:25]} {[%emt 00:00:03]} Rac8 {[%clk 00:02:16]} {[%emt 00:00:02]} 17.
Qa3 {[%clk 00:02:12]} {[%emt 00:00:15]} a5 {[%clk 00:02:12]} {[%emt 00:00:06]}
18. Rfd1 {[%clk 00:02:10]} {[%emt 00:00:03]} h6 {[%clk 00:02:10]} {[%emt
00:00:05]} 19. dxc5 {[%clk 00:01:52]} {[%emt 00:00:20]} Nxc5 {[%clk 00:01:52]}
{[%emt 00:00:21]} 20. Nd3 {[%clk 00:01:42]} {[%emt 00:00:12]} Qf8 {[%clk
00:01:47]} {[%emt 00:00:07]} 21. Nxc5 {[%clk 00:01:40]} {[%emt 00:00:05]} Rxc5
{[%clk 00:01:48]} {[%emt 00:00:01]} 22. Rxc5 {[%clk 00:01:34]} {[%emt
00:00:08]} Qxc5 {[%clk 00:01:48]} {[%emt 00:00:01]} 23. Qxc5 {[%clk 00:01:34]}
{[%emt 00:00:01]} bxc5 {[%clk 00:01:49]} 24. Ne5 {[%clk 00:01:31]} {[%emt
00:00:06]} Re8 {[%clk 00:01:37]} {[%emt 00:00:15]} 25. Nd3 {[%clk 00:01:28]}
{[%emt 00:00:05]} Rc8 {[%clk 00:01:32]} {[%emt 00:00:06]} 26. Rc1 {[%clk
00:01:15]} {[%emt 00:00:14]} Ne4 {[%clk 00:01:12]} {[%emt 00:00:22]} 27. Bxe4
{[%clk 00:00:50]} {[%emt 00:00:28]} dxe4 {[%clk 00:01:13]} {[%emt 00:00:01]} 28.
Nxc5 {[%clk 00:00:51]} {[%emt 00:00:01]} Bd5 {[%clk 00:01:14]} 29. a3 {[%clk
00:00:50]} {[%emt 00:00:03]} Rb8 {[%clk 00:01:03]} {[%emt 00:00:13]} 30. Rc3
{[%clk 00:00:51]} Kf8 {[%clk 00:01:02]} {[%emt 00:00:04]} 31. Nd7+ {[%clk
00:00:51]} {[%emt 00:00:02]} Ke8 {[%emt 00:00:07]} 1-0